fUST/lending_fUST_20240201
["ID","MTS","AMOUNT","RATE_DAILY","PERIOD"]
[313082293,1706730638570,-500.0,0.00019178,2]
[313082294,1706730638578,-500.0,0.00019178,2]
[313082295,1706730638588,-500.0,0.00019178,2]
[313082296,1706730638598,-500.0,0.00019178,2]
[313082297,1706730638616,-500.0,0.00019178,2]
[313082298,1706730638626,-500.0,0.00019178,2]
[313082299,1706730638635,-500.0,0.00019178,2]
[313082300,1706730638645,-500.0,0.00019178,2]
[313082301,1706730638654,-542.32133494,0.00019178,2]
[313082302,1706730638664,-500.0,0.00019178,2]
[313082303,1706730638673,-500.0,0.00019178,2]
[313082304,1706730638682,-500.0,0.00019178,2]
[313082305,1706730638691,-500.0,0.00019178,2]
[313082306,1706730638701,-2123.47,0.00019178,2]
[313082307,1706730638711,-500.0,0.00019178,2]
[313082308,1706730638721,-500.0,0.00019178,2]
[313082309,1706730638730,-762.64,0.00019178,2]
[313082310,1706730638739,-758.95,0.00019178,2]
[313082311,1706730638749,-500.0,0.00019178,2]
[313082312,1706730638764,-500.0,0.00019178,2]
[313082313,1706730638779,-500.0,0.00019178,2]
[313082314,1706730638792,-927.2,0.00019178,2]
[313082315,1706730638806,-500.0,0.00019178,2]
[313082316,1706730638817,-500.0,0.00019178,2]
[313082317,1706730638828,-500.0,0.00019178,2]
[313082318,1706730638840,-500.0,0.00019178,2]
[313082319,1706730638852,-808.69,0.00019178,2]
[313082320,1706730638871,-241.17774505,0.00019178,2]
[313082321,1706730638885,-500.0,0.00019178,2]
[313082322,1706730638899,-548.87,0.00019178,2]
[313082323,1706730638913,-1363.64,0.00019178,2]
[313082324,1706730638926,-500.0,0.00019178,2]
[313082325,1706730638940,-500.0,0.00019178,2]
[313082326,1706730638952,-500.0,0.00019178,2]
[313082327,1706730638964,-500.0,0.00019178,2]
[313082328,1706730638977,-863.2,0.00019178,2]
[313082329,1706730638989,-1062.76,0.00019178,2]
[313082330,1706730639001,-1096.35,0.00019178,2]
[313082331,1706730639014,-1288.22,0.00019178,2]
[313082332,1706730639026,-500.0,0.00019178,2]
[313082333,1706730639038,-500.0,0.00019178,2]
[313082334,1706730639051,-1699.87,0.00019178,2]
[313082335,1706730639064,-2827.67,0.00019178,2]
[313082336,1706730639074,-500.0,0.00019178,2]
[313082337,1706730639084,-500.0,0.00019178,2]
[313082338,1706730639096,-500.0,0.00019178,2]
[313082339,1706730639112,-500.0,0.00019178,2]
[313082340,1706730639122,-11012.22,0.00019178,2]
[313082341,1706730639133,-1263.89,0.00019178,2]
[313082342,1706730639146,-269.33328314,0.00019178,2]
[313082343,1706730639158,-500.0,0.00019178,2]
[313082344,1706730639170,-500.0,0.00019178,2]
[313082345,1706730639181,-500.0,0.00019178,2]
[313082346,1706730639193,-500.0,0.00019178,2]
[313082347,1706730639206,-500.0,0.00019178,2]
[313082348,1706730639219,-500.0,0.00019178,2]
[313082349,1706730639231,-500.0,0.00019178,2]
[313082350,1706730639244,-513.93419891,0.00019178,2]
[313082351,1706730639257,-500.0,0.00019178,2]
[313082352,1706730639271,-500.0,0.00019178,2]
[313082353,1706730639283,-500.0,0.00019178,2]
[313082354,1706730639296,-500.0,0.00019178,2]
[313082355,1706730639307,-500.0,0.00019178,2]
[313082356,1706730639319,-500.0,0.00019178,2]
[313082357,1706730639330,-577.72132354,0.00019178,2]
[313082358,1706730639341,-500.0,0.00019178,2]
[313082359,1706730639353,-5163.89,0.00019178,2]
[313082360,1706730639367,-5277.94,0.00019178,2]
[313082361,1706730639378,-590.02,0.00019178,2]
[313082362,1706730639392,-500.0,0.00019178,2]
[313082363,1706730639404,-898.95,0.00019178,2]
[313082364,1706730639417,-500.0,0.00019178,2]
[313082365,1706730639427,-1643.96,0.00019178,2]
[313082366,1706730639438,-2134.97,0.00019178,2]
[313082367,1706730639448,-500.0,0.00019178,2]
[313082368,1706730639459,-7750.6,0.00019178,2]
[313082369,1706730639470,-500.0,0.00019178,2]
[313082370,1706730639483,-829.59,0.00019178,2]
[313082371,1706730639493,-800.91,0.00019178,2]
[313082372,1706730639504,-489.10048454,0.00019178,2]
[313082373,1706730639517,-896.79,0.00019178,2]
[313082374,1706730639528,-500.0,0.00019178,2]
[313082375,1706730639539,-372.85777824,0.00019178,2]
[313082376,1706730639550,-2097.59,0.00019178,2]
[313082377,1706730639562,-500.0,0.00019178,2]
[313082378,1706730639573,-1920.92,0.00019178,2]
[313082379,1706730639583,-500.49854135,0.00019178,2]
[313082380,1706730639594,-500.0,0.00019178,2]
[313082381,1706730639608,-500.0,0.00019178,2]
[313082382,1706730639619,-500.0,0.00019178,2]
[313082383,1706730639629,-1127.88,0.00019178,2]
[313082384,1706730639639,-861.02,0.00019178,2]
[313082385,1706730639650,-642.3454458,0.00019178,2]
[313082386,1706730639660,-500.0,0.00019178,2]
[313082387,1706730639671,-500.0,0.00019178,2]
[313082388,1706730639681,-500.0,0.00019178,2]
[313082389,1706730639692,-2091.84413749,0.00019441,2]
[313082390,1706730639702,-500.0,0.00019452,2]
[313082391,1706730639714,-500.0,0.00019452,2]
[313082392,1706730639725,-500.0,0.00019452,2]
[313082393,1706730639736,-500.0,0.00019452,2]
[313082394,1706730639746,-500.0,0.00019452,2]
[313082395,1706730639757,-500.0,0.00019452,2]
[313082396,1706730639768,-500.0,0.00019452,2]
[313082397,1706730639779,-500.0,0.00019452,2]
[313082398,1706730639790,-500.0,0.00019452,2]
[313082399,1706730639800,-500.0,0.00019452,2]
[313082400,1706730639811,-372.95353061,0.00019452,2]
[313082401,1706730639822,-2123.47,0.00019452,2]
[313082402,1706730639833,-500.0,0.00019452,2]
[313082403,1706730639844,-500.0,0.00019452,2]
[313082404,1706730639857,-762.64,0.00019452,2]
[313082405,1706730639868,-758.95,0.00019452,2]
[313082406,1706730639878,-296.71682223,0.00019452,2]
[313082407,1706730639889,-927.2,0.00019452,2]
[313082408,1706730639913,-500.0,0.00019452,2]
[313082409,1706730639928,-500.0,0.00019452,2]
[313082410,1706730639943,-500.0,0.00019452,2]
[313082411,1706730640107,-258.58735297,0.00019452,2]
[313082412,1706730640122,-808.69,0.00019452,2]
[313082413,1706730640131,-500.0,0.00019452,2]
[313082414,1706730640141,-1363.64,0.00019452,2]
[313082415,1706730640150,-548.87,0.00019452,2]
[313082416,1706730640159,-500.0,0.00019452,2]
[313082417,1706730640168,-500.0,0.00019452,2]
[313082418,1706730640177,-500.0,0.00019452,2]
[313082419,1706730640186,-500.0,0.00019452,2]
[313082420,1706730640195,-863.2,0.00019452,2]
[313082421,1706730640204,-1062.76,0.00019452,2]
[313082422,1706730640213,-1096.35,0.00019452,2]
[313082423,1706730640223,-1288.22,0.00019452,2]
[313082424,1706730640234,-500.0,0.00019452,2]
[313082425,1706730640243,-500.0,0.00019452,2]
[313082426,1706730640253,-1699.87,0.00019452,2]
[313082427,1706730640262,-2827.67,0.00019452,2]
[313082428,1706730640271,-500.0,0.00019452,2]
[313082429,1706730640281,-500.0,0.00019452,2]
[313082430,1706730640292,-500.0,0.00019452,2]
[313082431,1706730640301,-11012.22,0.00019452,2]
[313082432,1706730640310,-1263.89,0.00019452,2]
[313082433,1706730640320,-500.0,0.00019452,2]
[313082434,1706730640330,-500.0,0.00019452,2]
[313082435,1706730640340,-500.0,0.00019452,2]
[313082436,1706730640350,-373.70565358,0.00019452,2]
[313082437,1706730640364,-500.0,0.00019452,2]
[313082438,1706730640374,-500.0,0.00019452,2]
[313082440,1706730640385,-500.0,0.00019452,2]
[313082442,1706730640396,-5163.89,0.00019452,2]
[313082443,1706730640406,-5277.94,0.00019452,2]
[313082445,1706730640417,-590.02,0.00019452,2]
[313082446,1706730640426,-500.0,0.00019452,2]
[313082447,1706730640436,-898.95,0.00019452,2]
[313082448,1706730640445,-1643.96,0.00019452,2]
[313082449,1706730640454,-2134.97,0.00019452,2]
[313082450,1706730640464,-7750.6,0.00019452,2]
[313082452,1706730640473,-829.59,0.00019452,2]
[313082454,1706730640483,-800.91,0.00019452,2]
[313082456,1706730640492,-896.79,0.00019452,2]
[313082457,1706730640501,-2097.59,0.00019452,2]
[313082459,1706730640511,-1920.92,0.00019452,2]
[313082461,1706730640520,-500.0,0.00019452,2]
[313082462,1706730640530,-500.0,0.00019452,2]
[313082463,1706730640539,-1127.88,0.00019452,2]
[313082464,1706730640549,-861.02,0.00019452,2]
[313082465,1706730640560,-500.0,0.00019452,2]
[313082467,1706730640569,-500.0,0.00019452,2]
[313082469,1706730640577,-500.0,0.00019452,2]
[313082471,1706730640587,-211.1964661,0.00019589,2]
[313082472,1706730640596,-323.17931449,0.00019724,2]
[313082474,1706730640607,-1268.83572051,0.00019724,2]
[313082475,1706730640617,-155.00452043,0.00019724,2]
[313082476,1706730640626,-167.27020705,0.00019724,2]
[313082477,1706730640635,-155.06158408,0.00019724,2]
[313082478,1706730640644,-155.0,0.00019724,2]
[313082479,1706730640653,-517.22300754,0.00019724,2]
[313082480,1706730640662,-979.38829266,0.00019725,2]
[313082481,1706730640671,-622.24022043,0.00019725,2]
[313082482,1706730640680,-500.0,0.00019726,2]
[313082483,1706730640689,-500.0,0.00019726,2]
[313082484,1706730640699,-500.0,0.00019726,2]
[313082485,1706730640708,-500.0,0.00019726,2]
[313082487,1706730640717,-500.0,0.00019726,2]
[313082489,1706730640726,-500.0,0.00019726,2]
[313082490,1706730640735,-500.0,0.00019726,2]
[313082492,1706730640745,-500.0,0.00019726,2]
[313082493,1706730640753,-500.0,0.00019726,2]
[313082494,1706730640762,-500.0,0.00019726,2]
[313082495,1706730640771,-2123.47,0.00019726,2]
[313082496,1706730640780,-500.0,0.00019726,2]
[313082497,1706730640789,-500.0,0.00019726,2]
[313082498,1706730640798,-762.64,0.00019726,2]
[313082499,1706730640807,-758.95,0.00019726,2]
[313082500,1706730640815,-927.2,0.00019726,2]
[313082501,1706730640825,-500.0,0.00019726,2]
[313082502,1706730640834,-500.0,0.00019726,2]
[313082503,1706730640843,-500.0,0.00019726,2]
[313082504,1706730640852,-808.69,0.00019726,2]
[313082505,1706730640863,-500.0,0.00019726,2]
[313082506,1706730640872,-1363.64,0.00019726,2]
[313082507,1706730640881,-548.87,0.00019726,2]
[313082508,1706730640891,-500.0,0.00019726,2]
[313082509,1706730640900,-534.97764921,0.00019726,2]
[313082510,1706730640909,-500.0,0.00019726,2]
[313082511,1706730640919,-500.0,0.00019726,2]
[313082512,1706730640928,-863.2,0.00019726,2]
[313082513,1706730640938,-1062.76,0.00019726,2]
[313082514,1706730640947,-1096.35,0.00019726,2]
[313082515,1706730640956,-1288.22,0.00019726,2]
[313082516,1706730640966,-500.0,0.00019726,2]
[313082517,1706730640976,-500.0,0.00019726,2]
[313082518,1706730640986,-1699.87,0.00019726,2]
[313082519,1706730640995,-2827.67,0.00019726,2]
[313082520,1706730641005,-500.0,0.00019726,2]
[313082521,1706730641014,-500.0,0.00019726,2]
[313082522,1706730641024,-11012.22,0.00019726,2]
[313082523,1706730641032,-1263.89,0.00019726,2]
[313082524,1706730641042,-500.0,0.00019726,2]
[313082525,1706730641051,-500.0,0.00019726,2]
[313082526,1706730641061,-500.0,0.00019726,2]
[313082527,1706730641070,-500.0,0.00019726,2]
[313082528,1706730641079,-500.0,0.00019726,2]
[313082529,1706730641088,-5163.89,0.00019726,2]
[313082530,1706730641097,-5277.94,0.00019726,2]
[313082531,1706730641107,-590.02,0.00019726,2]
[313082532,1706730641117,-500.0,0.00019726,2]
[313082533,1706730641126,-898.95,0.00019726,2]
[313082534,1706730641135,-1643.96,0.00019726,2]
[313082535,1706730641144,-2134.97,0.00019726,2]
[313082536,1706730641153,-7750.6,0.00019726,2]
[313082537,1706730641162,-829.59,0.00019726,2]
[313082538,1706730641170,-800.91,0.00019726,2]
[313082539,1706730641179,-896.79,0.00019726,2]
[313082540,1706730641188,-2097.59,0.00019726,2]
[313082541,1706730641198,-1920.92,0.00019726,2]
[313082542,1706730641207,-500.0,0.00019726,2]
[313082543,1706730641216,-500.0,0.00019726,2]
[313082544,1706730641225,-1127.88,0.00019726,2]
[313082545,1706730641234,-861.02,0.00019726,2]
[313082546,1706730641243,-500.0,0.00019726,2]
[313082547,1706730641253,-500.0,0.00019726,2]
[313082548,1706730641264,-500.0,0.00019726,2]
[313082549,1706730641308,-200.0,0.0001995,2]
[313082550,1706730641317,-1855.89235868,0.00019998,2]
[313082551,1706730641327,-1996.50298693,0.00019998,2]
[313082552,1706730641336,-2042.05188148,0.00019998,2]
[313082553,1706730641345,-171.19787537,0.00019998,2]
[313082554,1706730641356,-500.0,0.00019999,2]
[313082556,1706730641366,-44380.68568654,0.0002,2]
[313082557,1706730641375,-679.86163762,0.0002,2]
[313082559,1706730641384,-155.03720446,0.0002,2]
[313082561,1706730641396,-155.01550155,0.0002,2]
[313082563,1706730641405,-154.98450155,0.0002,2]
[313082565,1706730641415,-178.21239998,0.0002,2]
[313082567,1706730641425,-1200.08348294,0.0002,2]
[313082569,1706730641435,-500.0,0.0002,2]
[313082572,1706730641444,-500.0,0.0002,2]
[313082574,1706730641453,-500.0,0.0002,2]
[313082576,1706730641463,-500.0,0.0002,2]
[313082578,1706730641473,-500.0,0.0002,2]
[313082580,1706730641482,-500.0,0.0002,2]
[313082582,1706730641491,-500.0,0.0002,2]
[313082583,1706730641500,-500.0,0.0002,2]
[313082585,1706730641510,-500.0,0.0002,2]
[313082587,1706730641519,-2123.47,0.0002,2]
[313082589,1706730641527,-500.0,0.0002,2]
[313082591,1706730641536,-500.0,0.0002,2]
[313082593,1706730641546,-762.64,0.0002,2]
[313082595,1706730641555,-758.95,0.0002,2]
[313082597,1706730641564,-200.0,0.0002,2]
[313082599,1706730641574,-927.2,0.0002,2]
[313082601,1706730641583,-500.0,0.0002,2]
[313082604,1706730641592,-500.0,0.0002,2]
[313082606,1706730641601,-808.69,0.0002,2]
[313082608,1706730641611,-1363.64,0.0002,2]
[313082609,1706730641620,-548.87,0.0002,2]
[313082610,1706730641629,-863.2,0.0002,2]
[313082611,1706730641638,-1062.76,0.0002,2]
[313082612,1706730641647,-1096.35,0.0002,2]
[313082613,1706730641656,-1288.22,0.0002,2]
[313082614,1706730641665,-500.0,0.0002,2]
[313082615,1706730641674,-500.0,0.0002,2]
[313082617,1706730641683,-1699.87,0.0002,2]
[313082619,1706730641691,-2827.67,0.0002,2]
[313082620,1706730641700,-323.57048434,0.0002,2]
[313082622,1706730641709,-175.07039463,0.0002,2]
[313082624,1706730641719,-500.0,0.0002,2]
[313082626,1706730641729,-11012.22,0.0002,2]
[313082628,1706730641738,-1263.89,0.0002,2]
[313082630,1706730641747,-155.32972216,0.0002,2]
[313082632,1706730641756,-500.0,0.0002,2]
[313082634,1706730641765,-500.0,0.0002,2]
[313082636,1706730641774,-500.0,0.0002,2]
[313082637,1706730641783,-500.0,0.0002,2]
[313082639,1706730641793,-5163.89,0.0002,2]
[313082641,1706730641802,-5277.94,0.0002,2]
[313082644,1706730641811,-590.02,0.0002,2]
[313082647,1706730641820,-500.0,0.0002,2]
[313082650,1706730641830,-898.95,0.0002,2]
[313082652,1706730641839,-1643.96,0.0002,2]
[313082655,1706730641848,-2134.97,0.0002,2]
[313082658,1706730641860,-2018.6059275,0.0002,2]
[313082662,1706730641876,-3468.87109131,0.0002,2]
[313082666,1706730641886,-1626.93440702,0.0002,2]
[313082677,1706730642006,-636.18857417,0.0002,2]
[313082679,1706730642016,-829.59,0.0002,2]
[313082681,1706730642027,-800.91,0.0002,2]
[313082683,1706730642037,-8.46044993,0.0002,2]
[313082719,1706730643303,-888.32955007,0.0002,2]
[313082721,1706730643312,-2097.59,0.0002,2]
[313082723,1706730643321,-1920.92,0.0002,2]
[313082725,1706730643331,-500.0,0.0002,2]
[313082727,1706730643340,-500.0,0.0002,2]
[313082729,1706730643349,-1127.88,0.0002,2]
[313082731,1706730643361,-861.02,0.0002,2]
[313082733,1706730643373,-500.0,0.0002,2]
[313082735,1706730643383,-500.0,0.0002,2]
[313082737,1706730643392,-500.0,0.00020273,2]
[313082739,1706730643405,-500.0,0.00020273,2]
[313082741,1706730643415,-500.0,0.00020273,2]
[313082743,1706730643424,-500.0,0.00020273,2]
[313082745,1706730643434,-500.0,0.00020273,2]
[313082747,1706730643443,-268.51233006,0.00020273,2]
[313082749,1706730643453,-500.0,0.00020273,2]
[313082751,1706730643462,-500.0,0.00020273,2]
[313082753,1706730643473,-500.0,0.00020273,2]
[313082755,1706730643483,-2123.47,0.00020273,2]
[313082757,1706730643493,-272.16464715,0.00020273,2]
[313082759,1706730643502,-500.0,0.00020273,2]
[313082761,1706730643512,-762.64,0.00020273,2]
[313082763,1706730643521,-758.95,0.00020273,2]
[313082765,1706730643531,-927.2,0.00020273,2]
[313082767,1706730643539,-500.0,0.00020273,2]
[313082769,1706730643549,-500.0,0.00020273,2]
[313082771,1706730643558,-808.69,0.00020273,2]
[313082773,1706730643568,-1363.64,0.00020273,2]
[313082775,1706730643578,-548.87,0.00020273,2]
[313082777,1706730643587,-863.2,0.00020273,2]
[313082780,1706730643597,-1062.76,0.00020273,2]
[313082782,1706730643608,-1096.35,0.00020273,2]
[313082783,1706730643617,-458.31347272,0.00020273,2]
[313082786,1706730643634,-829.90652728,0.00020273,2]
[313082788,1706730643643,-429.47507033,0.00020273,2]
[313082791,1706730643654,-108.31367032,0.00020273,2]
[313082793,1706730643664,-500.0,0.00020273,2]
[313082802,1706730643752,-69.97638943,0.00020273,2]
[313082870,1706730927372,200.0,0.00021093,7]
[313082874,1706731229809,200.0,0.00021093,7]
[313082889,1706731527739,200.0,0.00021093,7]
[313082898,1706731827572,200.0,0.00021093,7]
[313082950,1706731832534,-500.0,0.00017249,2]
[313082952,1706731832543,-154.9690062,0.0001725,2]
[313082954,1706731832552,-608.8922524,0.00017251,2]
[313082956,1706731832562,-979.38829266,0.00017258,2]
[313082958,1706731832571,-696.0499024,0.00018155,2]
[313082960,1706731832580,-471.35573788,0.00019176,2]
[313082962,1706731832589,-1855.89235868,0.00019176,2]
[313082964,1706731832599,-2042.05188148,0.00019176,2]
[313082966,1706731832608,-1996.50298693,0.00019176,2]
[313082968,1706731832618,-155.00452043,0.00019176,2]
[313082970,1706731832627,-517.22300754,0.00019176,2]
[313082972,1706731832635,-155.0,0.00019176,2]
[313082974,1706731832646,-155.06158408,0.00019176,2]
[313082976,1706731832655,-167.27020705,0.00019176,2]
[313082978,1706731832664,-323.17931449,0.00019176,2]
[313082980,1706731832672,-1268.83572051,0.00019176,2]
[313082982,1706731832680,-2091.84413749,0.00019176,2]
[313082984,1706731832689,-154.9690062,0.00019176,2]
[313082986,1706731832698,-154.9690062,0.00019176,2]
[313082988,1706731832708,-3326.30778329,0.00019177,2]
[313082990,1706731832717,-500.0,0.00019178,2]
[313082992,1706731832727,-500.0,0.00019178,2]
[313082994,1706731832739,-500.0,0.00019178,2]
[313082995,1706731832756,-500.0,0.00019178,2]
[313082997,1706731832767,-500.0,0.00019178,2]
[313082999,1706731832776,-500.0,0.00019178,2]
[313083001,1706731832786,-500.0,0.00019178,2]
[313083002,1706731832795,-500.0,0.00019178,2]
[313083003,1706731832804,-500.0,0.00019178,2]
[313083004,1706731832813,-500.0,0.00019178,2]
[313083005,1706731832822,-809.55,0.00019178,2]
[313083006,1706731832831,-500.0,0.00019178,2]
[313083007,1706731832840,-500.0,0.00019178,2]
[313083008,1706731832850,-500.0,0.00019178,2]
[313083009,1706731832859,-500.0,0.00019178,2]
[313083010,1706731832867,-500.0,0.00019178,2]
[313083011,1706731832877,-500.0,0.00019178,2]
[313083012,1706731832886,-241.17774505,0.00019178,2]
[313083013,1706731832894,-1369.02,0.00019178,2]
[313083014,1706731832903,-500.0,0.00019178,2]
[313083015,1706731832912,-500.0,0.00019178,2]
[313083016,1706731832921,-542.32133494,0.00019178,2]
[313083017,1706731832930,-500.0,0.00019178,2]
[313083018,1706731832938,-500.0,0.00019178,2]
[313083019,1706731832948,-500.0,0.00019178,2]
[313083020,1706731832957,-500.0,0.00019178,2]
[313083021,1706731832966,-2265.04,0.00019178,2]
[313083022,1706731832974,-500.0,0.00019178,2]
[313083023,1706731832983,-813.49,0.00019178,2]
[313083024,1706731832992,-500.0,0.00019178,2]
[313083026,1706731833002,-500.0,0.00019178,2]
[313083029,1706731833014,-373.70565358,0.00019178,2]
[313083030,1706731833024,-500.0,0.00019178,2]
[313083032,1706731833033,-500.0,0.00019178,2]
[313083034,1706731833043,-500.0,0.00019178,2]
[313083036,1706731833052,-1027.64,0.00019178,2]
[313083039,1706731833062,-835.72,0.00019178,2]
[313083040,1706731833071,-500.0,0.00019178,2]
[313083042,1706731833080,-500.0,0.00019178,2]
[313083044,1706731833089,-500.0,0.00019178,2]
[313083046,1706731833099,-500.0,0.00019178,2]
[313083048,1706731833108,-1075.41,0.00019178,2]
[313083049,1706731833117,-500.0,0.00019178,2]
[313083050,1706731833126,-500.0,0.00019178,2]
[313083051,1706731833135,-1308.1,0.00019178,2]
[313083052,1706731833144,-873.48,0.00019178,2]
[313083053,1706731833154,-1858.84,0.00019178,2]
[313083054,1706731833163,-500.0,0.00019178,2]
[313083055,1706731833173,-1155.08,0.00019178,2]
[313083056,1706731833181,-500.0,0.00019178,2]
[313083057,1706731833191,-500.0,0.00019178,2]
[313083058,1706731833200,-500.0,0.00019178,2]
[313083059,1706731833314,-852.01,0.00019178,2]
[313083060,1706731833324,-2957.65,0.00019178,2]
[313083061,1706731833335,-500.0,0.00019178,2]
[313083062,1706731833345,-555.41,0.00019178,2]
[313083063,1706731833355,-500.0,0.00019178,2]
[313083064,1706731833364,-500.0,0.00019178,2]
[313083065,1706731833375,-1331.59,0.00019178,2]
[313083066,1706731833383,-11506.75,0.00019178,2]
[313083067,1706731833392,-500.0,0.00019178,2]
[313083069,1706731833402,-500.0,0.00019178,2]
[313083070,1706731833412,-500.0,0.00019178,2]
[313083071,1706731833421,-250.07075875,0.00019178,2]
[313083072,1706731833430,-500.0,0.00019178,2]
[313083073,1706731833440,-500.0,0.00019178,2]
[313083074,1706731833449,-500.0,0.00019178,2]
[313083075,1706731833458,-500.0,0.00019178,2]
[313083076,1706731833468,-506.15,0.00019178,2]
[313083077,1706731833478,-389.77919623,0.00019178,2]
[313083078,1706731833496,-110.22080377,0.00019178,2]
[313083079,1706731833506,-500.0,0.00019178,2]
[313083080,1706731833521,-1944.55426696,0.00019178,2]
[313083081,1706731833534,-1302.90139904,0.00019178,2]
[313083082,1706731833545,-1273.39200881,0.00019178,2]
[313083094,1706731839782,-340.80038775,0.00017248,2]
[313083096,1706731839795,-268.09186465,0.00017248,2]
[313083098,1706731839804,-919.68232519,0.00019178,2]
[313083099,1706731839813,-295.24608529,0.00019178,2]
[313083100,1706731839882,-1158.95653593,0.00019178,2]
[313083146,1706731844299,-4106.47737878,0.00019178,2]
[313083147,1706731844308,-500.0,0.00019178,2]
[313083148,1706731844318,-767.11,0.00019178,2]
[313083149,1706731844327,-500.0,0.00019178,2]
[313083150,1706731844337,-594.0,0.00019178,2]
[313083151,1706731844347,-500.0,0.00019178,2]
[313083152,1706731844356,-526.01,0.00019178,2]
[313083153,1706731844365,-679.82,0.00019178,2]
[313083154,1706731844374,-500.0,0.00019178,2]
[313083155,1706731844383,-500.0,0.00019178,2]
[313083156,1706731844393,-739.13032204,0.00019178,2]
[313083172,1706731846602,-197.47709232,0.00019177,2]
[313083173,1706731846612,-500.0,0.00019177,2]
[313083174,1706731846622,-1473.99967796,0.00019178,2]
[313083175,1706731846631,-244.52632395,0.00019178,2]
[313083176,1706731846646,-255.47367605,0.00019178,2]
[313083177,1706731846655,-500.0,0.00019178,2]
[313083178,1706731846666,-938.7,0.00019178,2]
[313083179,1706731846674,-8296.05,0.00019178,2]
[313083181,1706731846684,-2016.93,0.00019178,2]
[313083182,1706731846693,-500.0,0.00019178,2]
[313083183,1706731846702,-2474.82,0.00019178,2]
[313083184,1706731846711,-500.0,0.00019178,2]
[313083185,1706731846721,-1962.36,0.00019178,2]
[313083186,1706731846730,-352.27375048,0.00019178,2]
[313083187,1706731846740,-500.0,0.00019178,2]
[313083188,1706731846750,-500.0,0.00019178,2]
[313083189,1706731846759,-1192.27,0.00019178,2]
[313083190,1706731846773,-500.0,0.00019178,2]
[313083191,1706731846786,-1083.4,0.00019178,2]
[313083192,1706731846795,-500.0,0.00019178,2]
[313083193,1706731846804,-500.0,0.00019178,2]
[313083194,1706731846814,-500.0,0.00019178,2]
[313083195,1706731846824,-828.41,0.00019178,2]
[313083196,1706731846833,-500.0,0.00019178,2]
[313083197,1706731846842,-500.0,0.00019178,2]
[313083198,1706731846851,-500.0,0.00019178,2]
[313083199,1706731846860,-837.08,0.00019178,2]
[313083200,1706731846869,-500.0,0.00019178,2]
[313083201,1706731846878,-166.109927,0.00019178,2]
[313083202,1706731846887,-11699.8,0.00019442,3]
[313083203,1706731846896,-500.0,0.00019452,2]
[313083204,1706731846905,-500.0,0.00019452,2]
[313083205,1706731846913,-500.0,0.00019452,2]
[313083206,1706731846921,-500.0,0.00019452,2]
[313083207,1706731846929,-500.0,0.00019452,2]
[313083208,1706731846939,-500.0,0.00019452,2]
[313083209,1706731846948,-500.0,0.00019452,2]
[313083210,1706731846957,-500.0,0.00019452,2]
[313083211,1706731846965,-809.55,0.00019452,2]
[313083212,1706731846975,-500.0,0.00019452,2]